[Event "CCT Airthings Masters Play-In 2023"]
[Site "Online"]
[Date "2023.02.03"]
[Round "2"]
[White "DeviatkinAndrey"]
[Black "spicycaterpillar"]
[Result "0-1"]
[ECO "E14"]
[WhiteElo "2200"]
[BlackElo "2572"]
[Annotator "TA"]
[PlyCount "196"]
[EventDate "2023.02.03"]
[EventType "swiss"]
[EventCountry "NET"]
[SourceTitle "playchess.com"]
[Source "ChessBase"]
[SourceQuality "1"]
[TimeControl "600+2"]

{[%evp 17,195,0,0,-6,18,0,22,8,14,-11,-16,-22,29,23,45,50,37,37,51,33,38,31,41,34,55,55,54,61,58,33,34,42,39,39,47,39,44,46,47,50,51,61,84,56,56,49,56,51,52,34,47,43,42,31,39,42,53,51,65,43,49,0,16,0,0,0,0,0,18,16,37,4,39,47,41,0,0,-213,8,8,185,0,0,-12,-12,-12,-13,-20,-20,-20,-20,-20,-12,-12,-12,-12,-12,-12,-12,-12,-12,-13,-12,-12,-12,-12,-12,-13,-13,-13,-13,-13,-13,-13,-13,-13,-13,-13,-13,-13,-13,-13,-13,-13,-13,-13,-8,-12,0,-13,-13,-13,-13,-13,-13,-13,-13,-13,-13,-13,-12,-13,-13,-13,-13,-13,-13,-13,-12,-12,-12,-12,-12,-12,-12,-12,-12,-12,-12,-12,-12,-18,0,-12,-12,-12,-12,-29971,-29972,-29982,-29983,-29983,-29984,-29984,-29985,-29985,-29986,-29986,-29987,-29987]} 1. d4 {[%emt 0:00:10]} Nf6 {[%emt 0:00:08]} 2. Nf3 {[%emt 0:00:02]} d5 {[%emt 0:00:02]} 3. c4 {[%emt 0:00:02]} e6 {[%emt 0:00:02]} 4. e3 {[%emt 0:00:01]} b6 {[%emt 0:00:26]} 5. b3 {[%emt 0:00:15]} Bb7 {[%emt 0:00:03]} 6. Bb2 {[%emt 0:00:09]} Nbd7 {[%emt 0:00:04]} 7. Nbd2 {[%emt 0:00:02]} Bd6 {[%emt 0:00:16]} 8. Bd3 {[%emt 0:00:11]} O-O {[%emt 0:00:07]} 9. O-O {[%emt 0:00:02]} Ne4 {[%emt 0:00:19] 9...Qe7 is the modern continuation.} 10. Qe2 {[%emt 0:00:18] E14: Queen's Indian: Classical Variation (4 e3).} a6 {[%emt 0:00:42]} 11. Rac1 {[%emt 0:00:13]} Qe7 {[%emt 0:01:20]} 12. Rfd1 {[%emt 0:00:17] The position is equal.} Rfd8 {[%emt 0:00:11]} 13. Ne5 {[%emt 0:01:14]} Nxd2 {[%emt 0:01:13]} 14. Rxd2 {[%emt 0:00:03] [#]} c5 $146 {[%emt 0:00:39]} (14... Nxe5 $142 15. dxe5 Bb4) ({Predecessor:} 14... Nxe5 15. dxe5 Ba3 16. cxd5 Bxb2 17. Rxb2 exd5 18. Qc2 Qxe5 19. Rbb1 c5 20. b4 c4 21. Bxh7+ {½-½ Jogstad,M (2322)-Crevatin,L (2221) SWE-chT 1920 Elite 2019 (9.2)}) 15. cxd5 {[%emt 0:00:14]} exd5 {[%emt 0:00:05][%cal Rd6e5]} 16. Nxd7 {[%emt 0:00:08]} (16. Qh5 g6 17. Qg4 (17. Qh6 Nxe5 18. dxe5 Bxe5 $17) 17... Nxe5 18. dxe5 Bxe5 19. Bxe5 Qxe5 $17) 16... Rxd7 {[%emt 0:00:05]} 17. dxc5 {[%emt 0:00:03]} bxc5 {[%emt 0:00:07]} 18. Qg4 {[%emt 0:00:05][%csl Gb2][%cal Rg4g7]} (18. Qh5 $5 {[%cal Rh5h7]} g6 19. Qh6 $14) 18... g6 {[%emt 0:00:12] [#]} 19. Bf6 $1 {[%emt 0:02:23][%mdl 64] Repels h5. Deflection} Qe6 {[%emt 0:00:13]} 20. Qh4 {[%emt 0:00:10]} Rc7 {[%emt 0:00:41]} 21. Be2 {[%emt 0:00:35]} Be5 {[%emt 0:00:31]} 22. Bxe5 {[%emt 0:00:05]} Qxe5 {[%emt 0:00:00]} 23. Bf3 {[%emt 0:00:04]} (23. Rdc2 $5 {[%cal Rc2c5]}) 23... Rac8 {[%emt 0:01:03]} 24. Qg3 {[%emt 0:00:19]} Qxg3 {[%emt 0:00:16]} 25. hxg3 {[%emt 0:00:02]} c4 {[%emt 0:00:50]} 26. Rc3 {[%emt 0:01:04]} cxb3 {[%emt 0:00:43]} 27. Rxb3 {[%emt 0:00:11][%cal Og1h2]} Rc1+ {[%emt 0:00:05]} 28. Kh2 {[%emt 0:00:04]} Bc6 {[%emt 0:00:12][%cal Od5d4]} 29. g4 {[%emt 0:00:06][%cal Ob3d3]} (29. Bxd5 Bxd5 30. Rxd5 R1c2 $11) 29... Kg7 {[%emt 0:00:04][%cal Od5d4]} 30. Kg3 {[%emt 0:00:09]} Rc5 {[%emt 0:00:06]} 31. Rbd3 {[%emt 0:00:06][%cal Rf3d5]} Rd8 $1 {[%emt 0:00:13]} 32. Rd4 {[%emt 0:00:22]} Rd7 {[%emt 0:00:01]} 33. g5 {[%emt 0:00:23]} (33. Bd1 $5 {[%cal Rd1b3]}) 33... h6 {[%emt 0:00:03]} 34. gxh6+ {[%emt 0:00:01]} Kxh6 {[%emt 0:00:00]} 35. Kf4 {[%emt 0:00:10]} Kg7 {[%emt 0:00:01]} 36. g4 {[%emt 0:00:03][%cal Bg2g4,Bg4g5][%mdl 32]} Kf6 {[%emt 0:00:05]} 37. g5+ {[%emt 0:00:01]} Ke7 {[%emt 0:00:00]} 38. a3 {[%emt 0:00:15]} a5 {[%emt 0:00:01]} 39. Rd1 {[%emt 0:00:07]} (39. Ke5 $14 {might be stronger.}) 39... Rc3 {[%emt 0:00:03]} 40. R1d3 {[%emt 0:00:02]} Rc2 {[%emt 0:00:02]} 41. Kg3 {[%emt 0:00:01][%cal Rf3d5]} Rc5 {[%emt 0:00:01]} 42. Rh4 {[%emt 0:00:03]} Bb5 {[%emt 0:00:02]} 43. Rdd4 {[%emt 0:00:03]} Bc4 {[%emt 0:00:04]} 44. Rh7 {[%emt 0:00:03]} Kf8 {[%emt 0:00:02]} 45. Rh8+ {[%emt 0:00:02]} Ke7 $1 {[%emt 0:00:01]} 46. Rf4 {[%emt 0:00:01]} d4 {[%emt 0:00:02]} 47. Bg4 $2 {[%emt 0:00:44] Prevents d3.} (47. Rxd4 $11 {and White has nothing to worry.} Rxd4 48. exd4 Rxg5+ 49. Kf4 Rf5+ 50. Kg3) 47... Be6 $2 {[%emt 0:00:07]} ({Black should try} 47... Rxg5 $19 {Threatens to win with ...Be6.} 48. Kf3 f5) 48. Bxe6 $11 {[%emt 0:00:04]} (48. exd4 $2 {perishes.} Rxg5 49. Kh4 Rxg4+ 50. Rxg4 Bxg4 51. Kxg4 Rxd4+ 52. Kg5 Rd5+ 53. Kg4 Rd3 $19) 48... Kxe6 {[%emt 0:00:00][%mdl 4096] Endgame KRR-KRR} (48... fxe6 $11 49. Rh7+ (49. exd4 Rxg5+ 50. Kf3 Rh5 $11) 49... Ke8 50. Rxd7 Rxg5+ 51. Kh4 Rh5+ 52. Kg4 Kxd7 53. Rxd4+ Kc6) 49. Re4+ $2 {[%emt 0:00:06]} ({Not} 49. exd4 Rxg5+ 50. Kf3 Rb7 $11) (49. Re8+ $18 Kd6 50. Rxd4+ (50. exd4 Rxg5+ 51. Kf3 Rh5 $11) 50... Kc6 51. Rc8+ Rc7 52. Rxc7+ Kxc7 53. Kg4) 49... Kf5 {[%emt 0:00:03]} 50. Rxd4 {[%emt 0:00:11]} Rxd4 {[%emt 0:00:01]} 51. exd4 {[%emt 0:00:00] KR-KR} Rc3+ {[%emt 0:00:00]} 52. f3 {[%emt 0:00:01]} Kxg5 {[%emt 0:00:04]} 53. Re8 {[%emt 0:00:08]} Rxa3 {[%emt 0:00:02] Threatening ...Kf5.} 54. d5 $1 {[%emt 0:00:01]} Kf6 {[%emt 0:00:04]} 55. d6 {[%emt 0:00:01] Threatening mate with d7.} Rd3 {[%emt 0:00:01]} 56. Ra8 {[%emt 0:00:01]} Rd5 {[%emt 0:00:03]} (56... Rxd6 {simplifies} 57. Rxa5 Rd3 58. Kg4 Kg7) 57. d7 {[%emt 0:00:03][%mdl 64] Deflection} Rxd7 {[%emt 0:00:02]} 58. Rxa5 {[%emt 0:00:01]} Rd4 {[%emt 0:00:00]} 59. Rb5 {[%emt 0:00:02]} Kg7 {[%emt 0:00:02]} 60. Ra5 {[%emt 0:00:02]} Rc4 {[%emt 0:00:01]} 61. Rb5 {[%emt 0:00:01]} Kh6 {[%emt 0:00:01]} 62. Ra5 {[%emt 0:00:02]} g5 {[%emt 0:00:02]} 63. Rb5 {[%emt 0:00:05]} Kg6 {[%emt 0:00:00]} 64. Ra5 $1 {[%emt 0:00:01]} Rc3 {[%emt 0:00:02]} 65. Ra8 {[%emt 0:00:05]} f6 {[%emt 0:00:01]} 66. Rb8 {[%emt 0:00:02]} Ra3 {[%emt 0:00:02]} 67. Rc8 {[%emt 0:00:01]} Ra4 {[%emt 0:00:02]} 68. Rb8 {[%emt 0:00:01]} Ra5 {[%emt 0:00:01]} 69. Rc8 {[%emt 0:00:01]} Kf5 {[%emt 0:00:01]} 70. Rb8 {[%emt 0:00:02]} Rc5 {[%emt 0:00:01]} 71. Ra8 {[%emt 0:00:02]} Ke5 {[%emt 0:00:02]} 72. Re8+ {[%emt 0:00:01]} Kf5 {[%emt 0:00:02]} 73. Ra8 {[%emt 0:00:02]} Rc1 {[%emt 0:00:02]} 74. Ra5+ {[%emt 0:00:02]} Kg6 {[%emt 0:00:01]} 75. Ra8 {[%emt 0:00:01]} Rd1 {[%emt 0:00:02]} 76. Rb8 {[%emt 0:00:02]} Rd2 {[%emt 0:00:03]} 77. Ra8 {[%emt 0:00:01]} Rb2 {[%emt 0:00:04]} 78. Rc8 {[%emt 0:00:02]} f5 {[%emt 0:00:01]} 79. Rg8+ {[%emt 0:00:02]} Kh6 {[%emt 0:00:02]} 80. Rh8+ {[%emt 0:00:03]} Kg7 {[%emt 0:00:01]} 81. Ra8 {[%emt 0:00:01]} Rb3 {[%emt 0:00:02] ...g4 would be deadly.} 82. Kg2 {[%emt 0:00:07]} f4 {[%emt 0:00:06]} 83. Ra6 {[%emt 0:00:02]} Kf7 {[%emt 0:00:02]} 84. Rc6 $1 {[%emt 0:00:01]} Ra3 {[%emt 0:00:02]} 85. Rb6 {[%emt 0:00:02]} Re3 {[%emt 0:00:01]} 86. Ra6 {[%emt 0:00:01]} Re6 {[%emt 0:00:02]} 87. Ra5 {[%emt 0:00:04]} Kg6 {[%emt 0:00:01]} 88. Rb5 $1 {[%emt 0:00:05]} Re2+ {[%emt 0:00:01]} 89. Kh3 {[%emt 0:00:04]} Rf2 {[%emt 0:00:01]} (89... Re1 $5 {[%cal Re1g1]} 90. Kg2 Ra1 $15) 90. Rb3 {[%emt 0:00:02]} Kh5 {[%emt 0:00:01]} 91. Ra3 {[%emt 0:00:01]} Re2 {[%emt 0:00:08] aiming for ...Re3.} 92. Rb3 $2 {[%emt 0:00:02][%mdl 8192]} (92. Ra8 $11) 92... Re3 {[%emt 0:00:04] Black mates.} 93. Rxe3 {[%emt 0:00:04]} fxe3 {[%emt 0:00:00] KPP-KP} 94. Kg3 {[%emt 0:00:00]} Kg6 {[%emt 0:00:01]} ({Weaker is} 94... e2 95. Kf2 $11) 95. Kg2 {[%emt 0:00:02]} Kf5 {[%emt 0:00:02]} 96. Kf1 {[%emt 0:00:02] [#]} Ke5 $1 {[%emt 0:00:01]} 97. Ke1 {[%emt 0:00:01] [#]} Kd5 $1 {[%emt 0:00:03]} 98. Kf1 {[%emt 0:00:04]} Kc4 {[%emt 0:00:01] Weighted Error Value: White=0.17 (very precise) /Black=0.18 (very precise)} 0-1

[Event "CCT Airthings Masters Play-In 2023"]
[Site "Online"]
[Date "2023.02.03"]
[Round "2"]
[White "Ginger_GM"]
[Black "Perez Ponsa, Federico"]
[Result "0-1"]
[ECO "D00"]
[WhiteElo "2110"]
[BlackElo "2532"]
[Annotator "TA"]
[PlyCount "70"]
[EventDate "2023.02.03"]
[EventType "swiss"]
[EventCountry "NET"]
[SourceTitle "playchess.com"]
[Source "ChessBase"]
[SourceQuality "1"]
[TimeControl "600+2"]

{[%evp 9,70,0,0,0,0,0,0,0,0,0,-1,-26,-17,-19,-21,-24,-23,-52,-51,-118,-103,-104,-105,-96,-101,-132,-106,-105,-97,-105,-107,-126,-117,-120,-122,-166,-163,-176,-177,-176,-176,-176,-176,-177,-179,-225,-176,-329,-289,-1218,-1168,-5074,-3186,-2555,-1779,-5097,-5081,-5081,-5073,-5081,-5088,-5088,-5081]} 1. d4 {[%emt 0:00:06]} Nf6 {[%emt 0:00:08]} 2. Nc3 {[%emt 0:00:08]} d5 {[%emt 0:00:01]} 3. Bf4 {[%emt 0:00:02]} c5 {[%emt 0:00:09]} 4. e4 {[%emt 0:00:09]} Nxe4 {[%emt 0:00:03]} 5. Nxe4 {[%emt 0:00:04]} dxe4 {[%emt 0:00:01]} 6. dxc5 {[%emt 0:00:05] D00: 1 d4 d5: Unusual lines.} Qa5+ {[%emt 0:00:01]} (6... Qxd1+ {simplifies} 7. Rxd1 Nc6 8. Be3 g6) 7. c3 {[%emt 0:00:02]} Qxc5 {[%emt 0:00:01]} 8. Qa4+ {[%emt 0:00:02] The position is equal.} Nc6 {[%emt 0:00:04]} 9. Qxe4 {[%emt 0:00:02]} g6 {[%emt 0:00:02]} 10. Qe3 {[%emt 0:00:05]} e5 {[%emt 0:00:21]} 11. Nf3 {[%emt 0:00:40][%cal Rf3e5]} (11. Qxc5 {simplifies} Bxc5 12. Bh6 Bf8 13. Bxf8 Kxf8 14. Bc4) 11... f6 {[%emt 0:00:25] [#]} 12. Nd2 $146 {[%emt 0:01:27]} ({Predecessor:} 12. Qxc5 Bxc5 13. Bh6 Kf7 14. Bb5 Be6 15. Be3 Bxe3 16. fxe3 Na5 17. O-O-O Ke7 18. b3 {½-½ Wu,D (2281)-Aveskulov,V (2534) Budapest FS08 GM 2022 (7)}) 12... Be6 {[%emt 0:00:27]} 13. Nb3 {[%emt 0:00:29] Prevents Qa5} Qb6 {[%emt 0:00:39]} (13... Qd5 $5 {[%cal Re5f4]} 14. Bg3 Rd8 $15) 14. Bh6 {[%emt 0:02:09]} (14. Qe2 $15) 14... Bxh6 $17 {[%emt 0:02:09]} 15. Qxh6 {[%emt 0:00:02]} Bxb3 {[%emt 0:00:27]} 16. axb3 {[%emt 0:00:01]} Qxb3 {[%emt 0:00:01]} 17. Bd3 {[%emt 0:00:30] [#] Bxg6+ would be deadly.} O-O-O {[%emt 0:01:29][%cal Ba8d8,Bd8d6,Bd6b6][%mdl 32]} (17... Qxb2 $2 18. O-O Rd8 19. Qg7 $18) 18. Be4 {[%emt 0:00:47]} Qc4 {[%emt 0:00:02]} ({But not} 18... Qxb2 $6 19. O-O Qb6 20. Qg7 $11) 19. Qe3 {[%emt 0:00:02][%cal Ob2b3]} a6 {[%emt 0:00:09]} 20. Bxc6 {[%emt 0:00:23]} Qxc6 {[%emt 0:00:02]} 21. O-O {[%emt 0:00:01]} Rd6 {[%emt 0:00:09]} 22. Qa7 {[%emt 0:00:10]} Rhd8 {[%emt 0:00:01]} 23. Ra5 {[%emt 0:00:05] aiming for Rc5.} Qb6 {[%emt 0:00:35]} 24. Rc5+ {[%emt 0:00:25]} Kd7 {[%emt 0:00:01]} 25. Qxb6 {[%emt 0:00:12]} Rxb6 $19 {[%emt 0:00:00][%mdl 4096] Endgame KRR-KRR} 26. b4 {[%emt 0:00:18]} Rc6 {[%emt 0:00:11] Threatens to win with ...Rxc5.} 27. Rd1+ {[%emt 0:00:47]} (27. Rd5+ $142 Rd6 28. Rxd6+ Kxd6 29. Rd1+ Ke7 30. Rxd8 Kxd8 31. Kf1) 27... Kc7 {[%emt 0:00:04][%cal Rd8d1]} 28. Rxd8 {[%emt 0:00:01]} (28. Rxc6+ bxc6 29. Ra1) 28... Kxd8 {[%emt 0:00:43][%cal Bc7d8,Bd8d7,Bd7c6,Bc6b5][%mdl 32]} 29. Rxc6 {[%emt 0:00:09]} (29. Rd5+ Kc7 30. f4) 29... bxc6 {[%emt 0:00:01] KP-KP. Black is clearly winning.} 30. f3 {[%emt 0:00:04]} Kd7 {[%emt 0:00:08][%cal Oc6c5] And now ...c5! would win.} 31. Kf2 {[%emt 0:00:02] [#]} c5 $1 {[%emt 0:00:01][%mdl 512]} 32. Ke3 {[%emt 0:00:12]} (32. b5 axb5) 32... Kc6 {[%emt 0:00:05]} 33. Kd3 {[%emt 0:00:01]} cxb4 {[%emt 0:00:03]} 34. cxb4 {[%emt 0:00:01]} Kb5 {[%emt 0:00:01]} 35. Kc3 {[%emt 0:00:03]} f5 {[%emt 0:00:00] Weighted Error Value: White=0.74/Black=0.02 (flawless)} 0-1

[Event "CCT Airthings Masters Play-In 2023"]
[Site "Online"]
[Date "2023.02.03"]
[Round "2"]
[White "Cueva Jumbo, Eduardo"]
[Black "DJ_Haubi"]
[Result "1-0"]
[ECO "E69"]
[WhiteElo "1954"]
[BlackElo "2265"]
[Annotator "TA"]
[PlyCount "61"]
[EventDate "2023.02.03"]
[EventType "swiss"]
[EventCountry "NET"]
[SourceTitle "playchess.com"]
[Source "ChessBase"]
[SourceQuality "1"]
[TimeControl "600+2"]

{[%evp 20,61,62,46,55,66,109,98,115,102,171,197,180,151,156,164,161,166,152,96,93,101,101,93,186,104,124,51,122,118,126,117,285,315,232,230,706,704,903,916,889,880,837,781]} 1. c4 {[%emt 0:00:05]} g6 {[%emt 0:00:05]} 2. g3 {[%emt 0:00:06]} Bg7 {[%emt 0:00:02]} 3. Bg2 {[%emt 0:00:04]} Nf6 {[%emt 0:00:02]} 4. Nf3 {[%emt 0:00:11]} O-O {[%emt 0:00:04]} 5. d4 {[%emt 0:00:00]} c6 {[%emt 0:00:03]} 6. O-O {[%emt 0:00:04]} d6 {[%emt 0:00:06]} 7. Nc3 {[%emt 0:00:02]} Qa5 {[%emt 0:00:03]} 8. h3 {[%emt 0:00:03]} e5 {[%emt 0:00:20]} 9. e4 {[%emt 0:00:04]} Re8 {[%emt 0:00:20]} 10. Be3 {[%emt 0:00:04]} Nbd7 {[%emt 0:00:13]} 11. Qc2 {[%emt 0:00:07]} exd4 {[%emt 0:00:09] E69: King's Indian: Fianchetto: 6...Nbd7 7 0-0 e5 8 e4 c6 9 h3.} 12. Nxd4 {[%emt 0:00:01]} Ne5 {[%emt 0:00:29]} 13. b3 {[%emt 0:00:03]} a6 {[%emt 0:00:23] White is better.} 14. Rad1 {[%emt 0:00:08]} c5 {[%emt 0:00:38]} (14... Ned7 $16 {was necessary.}) 15. Nde2 $18 {[%emt 0:00:03]} Qc7 {[%emt 0:00:12] [#]} 16. Bg5 $146 {[%emt 0:00:45]} ({Predecessor:} 16. f4 Nc6 17. Qd2 Bf8 18. f5 Bg7 19. g4 Ne5 20. Bh6 Bxh6 21. Qxh6 Qe7 22. g5 {1-0 Georgiev,K (2657)-Vutov,M (2362) BUL-ch 77th Bankia 2013 (9)}) 16... h6 {[%emt 0:00:46]} 17. Bxf6 {[%emt 0:00:13]} Bxf6 {[%emt 0:00:02]} 18. Qd2 {[%emt 0:00:32]} Bxh3 {[%emt 0:00:15]} 19. Qxh6 {[%emt 0:00:02]} (19. Nd5 $142 Qd8 20. Qxh6 (20. Bxh3 $2 {perishes.} Nf3+ {[%mdl 64] Discovered Attack, Double Attack} 21. Kg2 Nxd2 $19) (20. Nxf6+ Qxf6 21. f4 Nxc4 $16)) 19... Bxg2 $16 {[%emt 0:00:08]} 20. Kxg2 {[%emt 0:00:01]} (20. Nd5 {feels hotter.} Qd8 21. Kxg2 Bg7 22. Qh3) 20... Bg7 {[%emt 0:00:02] Dodges Nd5} 21. Qh3 {[%emt 0:00:08] aiming for f4.} Rad8 {[%emt 0:00:09]} (21... Nd7 $16 {might work better.}) 22. Rh1 {[%emt 0:00:12]} ({Better is} 22. f4 $1 $18 {[%cal Rf4e5]} Nc6 23. f5 (23. Rh1 Qe7 $16)) 22... Qd7 {[%emt 0:00:05]} 23. Qh7+ $1 {[%emt 0:00:12]} Kf8 {[%emt 0:00:02]} 24. f3 {[%emt 0:01:10] White is more active.} Nc6 {[%emt 0:00:39][%cal Ob7b5]} 25. Nd5 {[%emt 0:00:09]} Nd4 $2 {[%emt 0:00:11] [#] This move loses the game for Black.} (25... Ne7 $16) 26. Nef4 $1 $18 {[%emt 0:00:24]} Re5 {[%emt 0:00:17]} 27. Rh6 {[%emt 0:00:18][%cal Od1h1][%mdl 64] Threatens to win with Rdh1! Deflection, Back Rank} Ne6 $2 {[%emt 0:00:41] [#]} (27... Rxd5 28. Nxd5 Ne6) 28. Rxg6 $1 {[%emt 0:01:40][%mdl 576] Demolition. White is clearly winning.} fxg6 {[%emt 0:00:40]} (28... Nxf4+ 29. Nxf4) 29. Nxg6+ {[%emt 0:00:04] Excellent horsemanship.} Kf7 {[%emt 0:00:08]} 30. Nxe5+ {[%emt 0:00:02]} dxe5 {[%emt 0:00:02]} 31. Qf5+ {[%emt 0:00:00] Excellently played by Cueva Jumbo!   Weighted Error Value: White=0.10 (very precise) /Black=0.37} 1-0

[Event "CCT Airthings Masters Play-In 2023"]
[Site "Online"]
[Date "2023.02.03"]
[Round "2"]
[White "Arhimow, Mohamed Salem"]
[Black "penguingm1"]
[Result "1-0"]
[ECO "D35"]
[WhiteElo "1567"]
[BlackElo "2444"]
[Annotator "TA"]
[PlyCount "121"]
[EventDate "2023.02.03"]
[EventType "swiss"]
[EventCountry "NET"]
[SourceTitle "playchess.com"]
[Source "ChessBase"]
[SourceQuality "1"]
[TimeControl "600+2"]

{[%evp 16,121,0,0,0,-7,-8,-10,0,0,-8,-10,0,-7,0,-11,-10,-1,8,6,31,16,41,-4,11,0,0,0,0,-29,8,0,0,0,0,-37,-37,-30,-30,-28,-32,-29,-29,-31,-33,-55,-39,-47,-54,-52,-45,-56,-63,-54,-58,-51,-25,-37,-18,-72,0,0,0,0,18,0,0,0,0,0,0,0,0,0,0,0,0,0,45,0,0,0,38,55,341,348,1172,947,1209,1235,2462,959,2387,1895,2349,1214,1998,1756,12847,29956,29956,6800,4631,79,79,0,29990,29991]} 1. d4 {[%emt 0:00:22]} d5 {[%emt 0:00:05]} 2. c4 {[%emt 0:00:02]} e6 {[%emt 0:00:01]} 3. Nc3 {[%emt 0:00:01]} Be7 {[%emt 0:00:01]} 4. cxd5 {[%emt 0:00:01]} exd5 {[%emt 0:00:00]} 5. Bf4 {[%emt 0:00:01]} c6 {[%emt 0:00:00]} 6. e3 {[%emt 0:00:01]} Bf5 {[%emt 0:00:01]} 7. Bd3 {[%emt 0:00:17]} Bxd3 {[%emt 0:00:02]} 8. Qxd3 {[%emt 0:00:00]} Nf6 {[%emt 0:00:01]} 9. Nf3 {[%emt 0:00:02]} Nh5 {[%emt 0:00:12] D35: Queen's Gambit Declined: Exchange Variation.} 10. O-O {[%emt 0:00:07]} Nd7 {[%emt 0:00:05][%cal Bb8d7,Bd7f6,Bf6e4][%mdl 32]} 11. Rfe1 {[%emt 0:00:04]} O-O {[%emt 0:00:04] [#] The position is equal.} 12. h3 $146 {[%emt 0:00:02]} ({Predecessor:} 12. Qf5 g6 13. Qh3 Re8 14. g4 Nxf4 15. exf4 Bd6 16. Ne5 f6 17. Nf7 Qc7 18. Nxd6 Qxd6 {½-½ Tillmann,M (2098)-Stanetzek,C (2164) NRW Class2 1516 2015 (4.5)}) 12... Nxf4 {[%emt 0:00:03]} 13. exf4 {[%emt 0:00:00]} Re8 {[%emt 0:00:58]} 14. g3 {[%emt 0:00:10]} Nf6 {[%emt 0:01:07]} 15. Re3 {[%emt 0:00:17]} Bb4 {[%emt 0:00:09]} 16. Ne5 {[%emt 0:00:03]} Bxc3 {[%emt 0:00:27]} 17. bxc3 {[%emt 0:00:03]} Ne4 {[%emt 0:00:01]} 18. c4 {[%emt 0:00:49]} Re7 {[%emt 0:01:31]} 19. Rb1 {[%emt 0:00:28]} Qa5 {[%emt 0:02:06]} 20. Rb2 {[%emt 0:02:10]} f6 {[%emt 0:00:48]} 21. Nf3 {[%emt 0:00:11]} Rae8 {[%emt 0:00:01][%cal Oe4f2]} 22. Rbe2 {[%emt 0:00:47]} (22. c5 $5 {[%cal Rd3a3]}) 22... Kf7 {[%emt 0:01:19]} (22... dxc4 {is more complex.} 23. Qxc4+ Kf8 24. Kg2 Qd5) 23. cxd5 {[%emt 0:00:20]} Qxd5 {[%emt 0:01:03]} 24. Ne5+ {[%emt 0:00:02]} fxe5 {[%emt 0:00:01]} 25. Rxe4 {[%emt 0:00:01]} (25. Qxe4 $2 {perishes.} Qxe4 26. Rxe4 exd4 $19) (25. fxe5 $5 Nxg3 26. fxg3 $11) 25... exf4 {[%emt 0:00:11]} 26. Rxf4+ {[%emt 0:00:24][%mdl 64] Discovered Attack} Kg8 {[%emt 0:00:02]} 27. Rxe7 {[%emt 0:02:08]} Rxe7 {[%emt 0:00:00][%cal Be8e7,Be7d7,Bd7d5][%mdl 32]} 28. Qf3 {[%emt 0:00:01]} Qxf3 {[%emt 0:00:17]} (28... Qxa2 $2 29. Rf8#) 29. Rxf3 $11 {[%emt 0:00:00][%mdl 4096] Endgame KR-KR} Rd7 {[%emt 0:00:18]} 30. Rf4 {[%emt 0:00:01]} h6 {[%emt 0:00:05]} 31. h4 {[%emt 0:00:01]} Rd5 {[%emt 0:00:01]} 32. a3 {[%emt 0:00:37]} g5 {[%emt 0:00:03]} 33. hxg5 {[%emt 0:00:03]} hxg5 {[%emt 0:00:00]} 34. Re4 {[%emt 0:00:02]} Kf7 {[%emt 0:00:00] Dodges Re7+} 35. Kg2 {[%emt 0:00:05]} Ra5 {[%emt 0:00:01]} 36. Re3 {[%emt 0:00:02]} Kf6 {[%emt 0:00:05]} 37. Rb3 {[%emt 0:00:10]} (37. g4 $11 {remains equal.}) 37... b5 {[%emt 0:00:02]} (37... Rb5 $1 $17 {[%cal Rb5b3]} 38. Re3 a5) 38. Rc3 {[%emt 0:00:01]} Ra6 {[%emt 0:00:01]} 39. Kf3 {[%emt 0:00:02]} Kf5 {[%emt 0:00:02]} 40. Rc5+ {[%emt 0:00:04]} Ke6 {[%emt 0:00:02]} 41. Ke4 {[%emt 0:00:02]} Kd6 {[%emt 0:00:01]} 42. Rxg5 {[%emt 0:00:23]} Rxa3 {[%emt 0:00:01]} 43. Rg6+ {[%emt 0:00:01]} Kc7 {[%emt 0:00:03]} 44. f4 {[%emt 0:00:01]} b4 {[%emt 0:00:00][%cal Bb5b4,Bb4b3][%mdl 32]} 45. f5 {[%emt 0:00:07]} b3 {[%emt 0:00:01]} 46. Rg7+ {[%emt 0:00:14]} Kd6 {[%emt 0:00:01]} 47. Rg6+ {[%emt 0:00:02]} (47. Rb7 $5 {[%cal Rg3g4]}) 47... Kd7 {[%emt 0:00:04] aiming for ...b2.} 48. Rg7+ {[%emt 0:00:00]} Kd6 {[%emt 0:00:00]} 49. Rb7 {[%emt 0:00:10]} Ra1 $2 {[%emt 0:00:10][%mdl 8192]} (49... a5 $1 $14) 50. Rxb3 $18 {[%emt 0:00:03]} Re1+ $2 {[%emt 0:00:01]} (50... a5 51. Rf3 Ke7) 51. Re3 {[%emt 0:00:03]} Rd1 {[%emt 0:00:01]} 52. g4 {[%emt 0:00:06][%cal Bg3g4,Bg4g5,Bg5g6][%mdl 32]} a5 {[%emt 0:00:01]} 53. g5 {[%emt 0:00:02]} Rg1 {[%emt 0:00:02]} 54. Kf4 {[%emt 0:00:08] Black must now prevent f6.} a4 {[%emt 0:00:01]} 55. Ra3 {[%emt 0:00:02]} Kd5 {[%emt 0:00:03]} 56. g6 {[%emt 0:00:07] Strongly threatening Rg3.} Rf1+ {[%emt 0:00:04]} 57. Kg5 {[%emt 0:00:01]} Ke4 {[%emt 0:00:00]} 58. f6 {[%emt 0:00:02]} (58. g7 $142 Rg1+ 59. Kf6 Rxg7 60. Kxg7 Kxf5 61. Kf7 Ke4 62. Rxa4 Kf5 63. Ke7) 58... Rf5+ {[%emt 0:00:04] [#]} 59. Kh6 $2 {[%emt 0:00:01]} (59. Kh4 $1 $18 {Intending g7 and mate.} Rxf6 60. Kg5 (60. Rxa4 Rxg6 61. Rc4 Kd3 $15) 60... Rf5+ 61. Kh6) 59... Rxf6 $16 {[%emt 0:00:01] [#]} 60. Rxa4 {[%emt 0:00:03]} (60. Kg7 $1 $16 {[%cal Rg7f6]} Rd6 61. Rxa4) 60... Rf4 {[%emt 0:00:04][%mdl 8192] [#]} (60... c5 $11) 61. d5+ $1 {[%emt 0:00:02][%mdl 512] Weighted Error Value: White=0.21 (precise) /Black=0.29 (precise)} 1-0